bitfinex/quotes_BTCUSD_20240901
["timestamp","ask_amount","ask_price","bid_price","bid_amount"]
[1725163020605,0.001818,58636.0,58635.0,2.23530536]
[1725163020809,0.002818,58636.0,58635.0,2.24330536]
[1725163021363,0.002818,58636.0,58635.0,2.22176136]
[1725163022396,0.002818,58636.0,58635.0,1.40585794]
[1725163022594,0.002818,58636.0,58635.0,1.38780094]
[1725163028468,0.002818,58636.0,58635.0,1.00678594]
[1725163028675,0.002818,58636.0,58635.0,1.86692794]
[1725163028873,0.002818,58636.0,58635.0,1.45984994]
[1725163034804,0.002818,58636.0,58635.0,1.45643933]
[1725163035547,0.002818,58636.0,58635.0,1.79753233]
[1725163044159,0.002818,58636.0,58635.0,1.34446833]
[1725163044336,0.002818,58636.0,58635.0,3.37114733]
[1725163045924,0.002818,58636.0,58635.0,3.87114733]
[1725163047116,0.002818,58636.0,58635.0,3.87311532]
[1725163047342,0.002818,58636.0,58635.0,4.04657609]
[1725163048388,0.002818,58636.0,58635.0,4.38666909]
[1725163048608,0.002818,58636.0,58635.0,4.39766909]
[1725163048795,0.002818,58636.0,58635.0,4.78978472]
[1725163049023,0.002818,58636.0,58635.0,4.39766909]
[1725163049650,0.001818,58636.0,58635.0,4.44075621]
[1725163049893,0.001818,58636.0,58635.0,4.38966909]
[1725163050517,0.001818,58636.0,58635.0,4.44075447]
[1725163050671,0.001818,58636.0,58635.0,4.44675447]
[1725163050870,0.000818,58636.0,58635.0,4.43875447]
[1725163051076,0.001818,58636.0,58635.0,4.44775447]
[1725163051272,0.002818,58636.0,58635.0,4.46075447]
[1725163051880,0.002818,58636.0,58635.0,5.15184287]
[1725163052101,0.002818,58636.0,58635.0,5.36377272]
[1725163052321,0.002818,58636.0,58635.0,5.38931311]
[1725163052507,0.002818,58636.0,58635.0,5.26161116]
[1725163053169,0.001818,58636.0,58635.0,5.24861116]
[1725163053395,0.001818,58636.0,58635.0,5.26261116]
[1725163053932,0.000818,58646.0,58645.0,2.29089994]
[1725163054109,0.000818,58646.0,58645.0,2.51038102]
[1725163054287,0.000818,58646.0,58645.0,6.80622702]
[1725163054519,0.000818,58646.0,58645.0,6.75520671]
[1725163054897,0.000818,58646.0,58645.0,7.09620671]
[1725163055159,0.000818,58646.0,58645.0,6.80620727]
[1725163055576,0.000818,58646.0,58645.0,6.75520671]
[1725163056225,0.000818,58646.0,58645.0,6.77346103]
[1725163056418,0.000818,58646.0,58645.0,6.78746103]
[1725163057375,0.000818,58646.0,58645.0,6.80146103]
[1725163057641,0.000818,58646.0,58645.0,6.78746103]
[1725163058128,0.000818,58646.0,58645.0,6.80146103]
[1725163058337,0.000818,58646.0,58645.0,5.4290093]
[1725163058513,0.000818,58646.0,58645.0,5.41326872]
[1725163058760,0.000818,58646.0,58645.0,5.42726872]
[1725163058958,0.000818,58646.0,58645.0,2.48539272]
[1725163059086,0.000818,58646.0,58645.0,6.70493172]
[1725163060137,0.000818,58646.0,58645.0,3.47947853]
[1725163060370,0.000818,58646.0,58645.0,2.28227753]
[1725163061588,0.000818,58646.0,58645.0,2.26827753]
[1725163061833,0.001818,58646.0,58645.0,2.28227753]
[1725163062307,0.001818,58646.0,58645.0,2.26827753]
[1725163062800,0.001818,58646.0,58645.0,2.28227753]
[1725163063274,0.000818,58646.0,58645.0,2.26827753]
[1725163063750,0.001818,58646.0,58645.0,2.28227753]
[1725163065251,0.001818,58646.0,58645.0,2.27981541]
[1725163066413,0.001818,58646.0,58645.0,2.94777618]
[1725163066646,0.001818,58646.0,58645.0,2.60677618]
[1725163071828,0.001818,58646.0,58645.0,2.94777618]
[1725163073298,0.001818,58646.0,58645.0,4.40399618]
[1725163078546,0.001818,58646.0,58645.0,4.40489598]
[1725163082424,0.001818,58646.0,58645.0,4.08293521]
[1725163082627,0.001818,58646.0,58645.0,2.53154421]
[1725163083417,0.001818,58646.0,58645.0,2.52654421]
[1725163087730,0.001818,58646.0,58645.0,3.08650221]
[1725163088046,0.001818,58646.0,58645.0,3.04694221]
[1725163088255,0.001818,58646.0,58645.0,2.86698221]
[1725163091545,0.001818,58646.0,58645.0,2.91810441]
[1725163091746,0.170479,58659.0,58653.0,0.170491]
[1725163091968,0.170482,58658.0,58654.0,0.227828]
[1725163093790,0.170482,58658.0,58654.0,0.398319]
[1725163094111,0.170482,58658.0,58655.0,0.289828]
[1725163094638,0.0438,58657.0,58655.0,0.289828]
[1725163094850,0.170477,58659.0,58655.0,0.289828]
[1725163095186,0.170477,58659.0,58655.0,0.460316]
[1725163095386,0.170477,58659.0,58655.0,0.170488]
[1725163095649,0.170477,58659.0,58655.0,0.17422492]
[1725163096047,0.170477,58659.0,58655.0,0.16622492]
[1725163096469,0.170477,58659.0,58655.0,0.17522492]
[1725163097264,0.170477,58659.0,58655.0,0.17022492]
[1725163098654,0.170477,58659.0,58655.0,0.17722492]
[1725163101858,0.00887107,58658.0,58655.0,0.17722492]
[1725163102327,0.00887107,58658.0,58655.0,0.17812472]
[1725163102693,0.00887107,58658.0,58655.0,0.17412472]
[1725163103059,0.00887107,58658.0,58655.0,0.17212472]
[1725163103241,0.00887107,58658.0,58655.0,0.18012472]
[1725163104998,0.00887107,58658.0,58655.0,0.0138998]
[1725163105199,0.00887107,58658.0,58655.0,0.1843868]
[1725163110945,0.00887107,58658.0,58656.0,0.170485]
[1725163112449,0.00887107,58658.0,58656.0,0.175485]
[1725163113032,0.00887107,58658.0,58656.0,0.183485]
[1725163116198,0.00887107,58658.0,58656.0,0.013]
[1725163118497,0.00887107,58658.0,58656.0,0.0773]
[1725163125661,0.17935107,58658.0,58656.0,0.0773]
[1725163126166,0.18016907,58658.0,58656.0,0.0773]
[1725163127035,0.19787515,58658.0,58656.0,0.0773]
[1725163127550,0.60527842,58657.0,58656.0,0.013]
[1725163127753,1.14139334,58657.0,58656.0,0.013]
[1725163128076,1.49122702,58657.0,58656.0,0.013]
[1725163128436,1.59356167,58657.0,58656.0,0.013]
[1725163128814,1.59356167,58657.0,58656.0,0.008]
[1725163129151,1.59556167,58657.0,58656.0,0.001]
[1725163129354,1.49322702,58657.0,58656.0,0.001]
[1725163129555,1.49122702,58657.0,58656.0,0.009]
[1725163130013,1.49322702,58657.0,58656.0,0.01]
[1725163130419,1.49322702,58657.0,58656.0,0.001]
[1725163130594,1.49322702,58657.0,58656.0,0.002]
[1725163136579,1.3993956,58657.0,58656.0,0.002]
[1725163136877,1.49322702,58657.0,58656.0,0.002]
[1725163138924,1.0584306,58657.0,58656.0,0.002]
[1725163139139,0.98628068,58657.0,58656.0,0.002]
[1725163140563,0.64531568,58657.0,58656.0,0.002]
[1725163140774,0.64531568,58657.0,58656.0,0.0681]
[1725163148974,0.98628068,58657.0,58656.0,0.002]
[1725163152739,0.98628068,58657.0,58656.0,0.0636]
[1725163152953,0.98628068,58657.0,58656.0,0.002]
[1725163155447,1.05832213,58657.0,58656.0,0.002]
[1725163158149,1.39928713,58657.0,58656.0,0.002]
[1725163161651,1.40010513,58657.0,58656.0,0.002]
[1725163170085,1.40010513,58657.0,58656.0,0.0656]
[1725163171058,1.40010513,58657.0,58656.0,0.1465]
[1725163173641,0.79716926,58657.0,58656.0,0.14724353]
[1725163173876,0.69517513,58657.0,58656.0,0.14724353]
[1725163174114,0.78900655,58657.0,58656.0,0.14724353]
[1725163181347,1.12997155,58657.0,58656.0,0.14724353]
[1725163183832,0.35421013,58657.0,58656.0,0.14724353]
[1725163184025,0.69517513,58657.0,58656.0,0.14724353]
[1725163186959,0.35421013,58657.0,58656.0,0.14724353]
[1725163191412,0.18372813,58657.0,58656.0,0.14724353]
[1725163200224,0.18372813,58657.0,58656.0,0.31772853]
[1725163201467,0.44804155,58657.0,58656.0,0.14724353]
[1725163201679,0.78900655,58657.0,58656.0,0.0656]
[1725163201905,0.81200655,58657.0,58656.0,0.002]
[1725163204819,0.27711315,58657.0,58656.0,0.002]
[1725163205053,0.26431342,58657.0,58656.0,0.002]
[1725163205662,0.60527842,58657.0,58656.0,0.002]
[1725163206651,0.94624342,58657.0,58656.0,0.001]
[1725163207069,0.852427,58656.0,58655.0,0.0008998]
[1725163207277,0.975427,58656.0,58655.0,0.0008998]
[1725163207701,1.06925842,58656.0,58655.0,0.0008998]
[1725163208563,0.70528742,58656.0,58655.0,0.0644998]
[1725163208777,0.70528742,58656.0,58655.0,0.1438998]
[1725163208984,0.71028742,58656.0,58655.0,0.1438998]
[1725163211423,0.71028742,58656.0,58655.0,0.0644998]
[1725163211873,1.05125842,58656.0,58655.0,0.0008998]
[1725163212305,1.06930175,58656.0,58655.0,0.0008998]
[1725163212755,1.05125842,58656.0,58655.0,0.0008998]
[1725163212984,0.79963469,58656.0,58655.0,0.0008998]
[1725163213226,0.97011969,58656.0,58655.0,0.0008998]
[1725163215892,0.97011969,58656.0,58654.0,0.00074353]
[1725163215893,0.85244,58655.0,58654.0,0.00074353]
[1725163216090,0.95244,58655.0,58654.0,0.00074353]
[1725163217721,0.9667546,58655.0,58654.0,0.00074353]
[1725163220091,0.852455,58654.0,58653.0,0.06434353]
[1725163220300,0.952455,58654.0,58653.0,0.06434353]
[1725163220506,0.96276895,58654.0,58653.0,0.06434353]
[1725163221285,0.96576895,58654.0,58653.0,0.06434353]
[1725163221634,0.852485,58652.0,58651.0,0.0614]
[1725163221808,1.04631642,58652.0,58651.0,0.0614]
[1725163222040,1.05405188,58652.0,58651.0,0.0614]
[1725163222267,1.05662928,58652.0,58651.0,0.0614]
[1725163222507,1.05405106,58652.0,58651.0,0.0614]
[1725163222921,0.852527,58649.0,58648.0,0.06144353]
[1725163223119,1.04635842,58649.0,58648.0,0.06144353]
[1725163223322,1.05667076,58649.0,58648.0,0.06144353]
[1725163224487,0.71565976,58649.0,58648.0,0.06344353]
[1725163225714,0.71565976,58649.0,58648.0,0.06844353]
[1725163226123,0.11031234,58649.0,58648.0,0.14784353]
[1725163228327,0.01031234,58649.0,58648.0,0.14784353]
[1725163228747,0.1,58651.0,58649.0,0.1472]
[1725163228867,0.1,58651.0,58650.0,0.14794353]
[1725163230884,0.1,58652.0,58650.0,0.08214353]
[1725163231201,0.1,58652.0,58651.0,0.06654353]
[1725163231838,0.33538572,58652.0,58651.0,0.06654353]
[1725163232252,0.43021714,58652.0,58651.0,0.06654353]
[1725163233178,0.43021714,58652.0,58651.0,0.06854353]
[1725163233376,0.42921714,58652.0,58651.0,0.06854353]
[1725163233584,0.77021114,58652.0,58651.0,0.06854353]
[1725163233790,0.77121114,58652.0,58651.0,0.06854353]
[1725163234033,0.77064849,58652.0,58651.0,0.06854353]
[1725163240415,0.7809614,58652.0,58651.0,0.06854353]
[1725163240857,0.68712998,58652.0,58651.0,0.06854353]
[1725163244684,0.17563898,58652.0,58651.0,0.06854353]
[1725163244910,0.07620163,58652.0,58651.0,0.14504353]
[1725163245339,0.01131291,58652.0,58651.0,0.14504353]
[1725163246188,0.11131291,58652.0,58651.0,0.14504353]
[1725163247460,0.28180991,58652.0,58651.0,0.14504353]
[1725163253730,0.62280391,58652.0,58651.0,0.14504353]
[1725163253935,0.68766296,58652.0,58651.0,0.1443]
[1725163254519,1.02865696,58652.0,58651.0,0.1443]
[1725163254861,0.96379791,58652.0,58651.0,0.06854353]
[1725163255073,1.02865987,58652.0,58651.0,0.00274353]
[1725163259977,1.02865987,58652.0,58651.0,0.00364333]
[1725163260388,1.02947787,58652.0,58651.0,0.00364333]
[1725163261083,1.02947787,58652.0,58651.0,0.06964333]
[1725163262098,1.02947787,58652.0,58651.0,0.00364333]
[1725163262320,1.37047187,58652.0,58651.0,0.0028998]
[1725163264106,1.39089198,58652.0,58651.0,0.0028998]
[1725163267847,1.39089198,58652.0,58651.0,0.0639998]
[1725163268447,1.38989198,58652.0,58651.0,0.0639998]
[1725163268662,1.38589198,58652.0,58651.0,0.0639998]
[1725163270080,1.38589198,58652.0,58651.0,0.0028998]
[1725163270441,1.72688598,58652.0,58651.0,0.0028998]
[1725163271074,1.8207174,58652.0,58651.0,0.0028998]
[1725163272195,1.94804258,58652.0,58651.0,0.0028998]
[1725163272655,1.94804258,58652.0,58651.0,0.0008998]
[1725163272846,1.95404258,58652.0,58651.0,0.0018998]
[1725163273053,1.8267174,58652.0,58651.0,0.0018998]
[1725163273306,1.95403745,58652.0,58651.0,0.0018998]
[1725163273483,1.95603745,58652.0,58651.0,0.0028998]
[1725163274086,1.95403745,58652.0,58651.0,0.0028998]
[1725163274452,1.83097387,58652.0,58651.0,0.0028998]
[1725163274679,1.83597387,58652.0,58651.0,0.0028998]
[1725163274885,1.96329392,58652.0,58651.0,0.0028998]
[1725163275504,1.83597387,58652.0,58651.0,0.0028998]
[1725163275721,1.83797387,58652.0,58651.0,0.0028998]
[1725163276343,1.83597387,58652.0,58651.0,0.0028998]
[1725163276542,1.93775597,58652.0,58651.0,0.0028998]
[1725163276773,1.83597387,58652.0,58651.0,0.0028998]
[1725163276979,1.93775654,58652.0,58651.0,0.0028998]
[1725163277182,1.83597387,58652.0,58651.0,0.0028998]
[1725163277969,1.8317174,58652.0,58651.0,0.0028998]
[1725163278177,1.73788598,58652.0,58651.0,0.0028998]
[1725163278440,1.8267174,58652.0,58651.0,0.0028998]
[1725163286158,1.83097387,58652.0,58651.0,0.0028998]
[1725163286739,1.83597387,58652.0,58651.0,0.0028998]
[1725163287356,1.83797387,58652.0,58651.0,0.0028998]
[1725163289573,1.93972233,58652.0,58651.0,0.0028998]
[1725163289951,1.83797387,58652.0,58651.0,0.0028998]
[1725163290294,1.83597387,58652.0,58651.0,0.0028998]
[1725163293892,1.80357913,58652.0,58651.0,0.0028998]
[1725163294121,1.79932266,58652.0,58651.0,0.0028998]
[1725163294302,1.79432266,58652.0,58651.0,0.0028998]
[1725163296700,1.70049124,58652.0,58651.0,0.0028998]
[1725163296897,1.79432266,58652.0,58651.0,0.0028998]
[1725163302992,1.79432266,58652.0,58651.0,0.0659998]
[1725163306301,1.89613193,58652.0,58651.0,0.0659998]
[1725163306528,1.79432266,58652.0,58651.0,0.0659998]
[1725163306994,1.89613193,58652.0,58651.0,0.0659998]
[1725163307680,1.89613193,58652.0,58651.0,0.1428998]
[1725163307681,0.59090398,58652.0,58651.0,0.1428998]
[1725163307915,0.08197206,58652.0,58651.0,0.14364333]
[1725163308129,0.08197206,58652.0,58651.0,0.31414333]
[1725163308346,0.0171101,58652.0,58651.0,0.14364333]
[1725163308555,0.0111101,58652.0,58651.0,0.14264333]
[1725163308792,0.0111101,58652.0,58651.0,0.31314333]
[1725163309029,0.0181101,58652.0,58651.0,0.42858533]
[1725163309248,0.34157868,58658.0,58656.0,0.00074353]
[1725163309464,0.51205768,58658.0,58657.0,0.14]
[1725163310148,0.61205768,58658.0,58657.0,0.14]
[1725163311001,0.95301668,58658.0,58657.0,0.14]
[1725163321243,0.95383468,58658.0,58657.0,0.14]
[1725163326837,0.953215,58658.0,58657.0,0.14]
[1725163326988,0.271297,58658.0,58657.0,0.14074353]
[1725163328019,0.612256,58658.0,58657.0,0.14074353]
[1725163331315,0.271297,58658.0,58657.0,0.14074353]
[1725163331728,0.612256,58658.0,58657.0,0.14074353]
[1725163331934,0.70608742,58658.0,58657.0,0.14074353]
[1725163332922,0.70608742,58658.0,58657.0,0.14164333]
[1725163334744,0.100818,58658.0,58657.0,0.14164333]
[1725163334952,0.000818,58658.0,58657.0,0.14164333]
[1725163335151,0.100818,58658.0,58657.0,0.14164333]
[1725163335872,0.100818,58658.0,58657.0,0.13738083]
[1725163336655,0.000818,58658.0,58657.0,0.13738083]
[1725163341015,0.000818,58658.0,58657.0,0.30786283]
[1725163341245,0.01998652,58662.0,58659.0,0.0634]
[1725163341452,0.270468,58662.0,58661.0,0.00074353]
[1725163341690,0.270468,58662.0,58661.0,0.14724353]
[1725163342094,0.1,58662.0,58661.0,0.14724353]
[1725163345072,0.612222,58662.0,58661.0,0.14724353]
[1725163345285,0.612222,58662.0,58661.0,0.1465]
[1725163345433,0.612222,58662.0,58661.0,0.06414353]
[1725163348832,0.953158,58662.0,58661.0,0.14234353]
[1725163350358,0.681872,58662.0,58661.0,0.14234353]
[1725163350965,0.85234,58662.0,58661.0,0.14234353]
[1725163354173,0.85222067,58662.0,58661.0,0.14234353]
[1725163356111,0.85222067,58662.0,58657.0,0.0008998]
[1725163356112,1.193335,58659.0,58658.0,0.0647]
[1725163356324,1.193335,58659.0,58657.0,0.0790998]
[1725163356325,0.60526942,58658.0,58657.0,0.0008998]
[1725163356534,0.94622842,58658.0,58657.0,0.0008998]
[1725163358106,0.852397,58658.0,58657.0,0.0008998]
[1725163358370,0.511438,58658.0,58657.0,0.14454333]
[1725163358576,0.170479,58658.0,58657.0,0.14454333]
[1725163358779,0.511438,58658.0,58657.0,0.14454333]
[1725163359330,0.170479,58658.0,58657.0,0.14454333]
[1725163367009,0.34095,58660.0,58659.0,0.00074353]
[1725163367010,0.170476,58660.0,58659.0,0.00074353]
[1725163367251,0.170476,58660.0,58659.0,0.14024353]
[1725163367600,0.171288,58662.0,58661.0,0.00074353]
[1725163367805,0.57714354,58662.0,58661.0,0.06474353]
[1725163369205,0.23620754,58662.0,58661.0,0.06474353]
[1725163369824,0.23620754,58662.0,58661.0,0.06874353]
[1725163370322,0.23620754,58662.0,58661.0,0.07474353]
[1725163373333,0.23620754,58662.0,58661.0,0.01]
[1725163373334,0.91807954,58662.0,58661.0,0.01]
[1725163373567,0.94107954,58662.0,58661.0,0.01]
[1725163373905,0.94107954,58662.0,58661.0,0.004]
[1725163374333,0.94107954,58662.0,58661.0,0.008]
[1725163374536,0.68058085,58662.0,58661.0,0.008]
[1725163374944,0.85105085,58662.0,58661.0,0.004]
[1725163375145,0.85105085,58662.0,58661.0,0.006]
[1725163377030,0.85105085,58662.0,58661.0,0.1552]
[1725163380600,0.85186885,58662.0,58661.0,0.1552]
[1725163384578,0.91004512,58662.0,58661.0,0.1552]
[1725163386400,0.91004512,58662.0,58661.0,0.006]
[1725163392511,0.91004512,58662.0,58661.0,0.0068998]
[1725163394329,1.25098112,58662.0,58661.0,0.0068998]
[1725163394642,1.25518112,58662.0,58661.0,0.0068998]
[1725163395813,1.60037359,58662.0,58661.0,0.0068998]
[1725163396022,1.60037359,58662.0,58657.0,0.0008998]
[1725163396023,1.20381247,58658.0,58657.0,0.0008998]
[1725163396195,1.69677916,58658.0,58657.0,0.0008998]
[1725163396589,2.16073816,58658.0,58657.0,0.0008998]
[1725163397246,1.94727534,58658.0,58657.0,0.0008998]
[1725163398362,1.81977916,58658.0,58657.0,0.0018998]
[1725163399150,1.81777916,58658.0,58657.0,0.0018998]
[1725163399379,1.91971685,58658.0,58657.0,0.0028998]
[1725163400220,1.81777916,58658.0,58657.0,0.0028998]
[1725163401792,1.81977916,58658.0,58657.0,0.0028998]
[1725163403653,1.81777916,58658.0,58657.0,0.0028998]
[1725163404098,1.8403096,58658.0,58657.0,0.0028998]
[1725163405008,1.8403096,58658.0,58657.0,0.0008998]
[1725163405242,1.83605313,58658.0,58657.0,0.0018998]
[1725163405461,1.81557916,58658.0,58657.0,0.0028998]
[1725163405688,1.81557916,58658.0,58657.0,0.0018998]
[1725163405915,1.81557916,58658.0,58657.0,0.0028998]
[1725163406355,1.81557916,58658.0,58657.0,0.0018998]
[1725163406600,1.81777916,58658.0,58657.0,0.0018998]
[1725163406828,1.81352269,58658.0,58657.0,0.0018998]
[1725163407074,1.81552269,58658.0,58657.0,0.0028998]
[1725163407332,1.81552269,58658.0,58657.0,0.0018998]
[1725163407572,1.81352269,58658.0,58657.0,0.0018998]
[1725163407796,1.81552269,58658.0,58657.0,0.0018998]
[1725163408274,1.81552269,58658.0,58657.0,0.0028998]
[1725163408503,1.81752269,58658.0,58657.0,0.0028998]
[1725163408739,1.81552269,58658.0,58657.0,0.0028998]
[1725163408987,1.81977916,58658.0,58657.0,0.0028998]
[1725163409598,1.82177916,58658.0,58657.0,0.0028998]
[1725163409820,1.72594774,58658.0,58657.0,0.0028998]
[1725163410019,1.81977916,58658.0,58657.0,0.0028998]
[1725163411499,1.81557916,58658.0,58657.0,0.0028998]
[1725163412342,3.09157916,58658.0,58657.0,0.0028998]
[1725163413404,0.37628547,58646.0,58632.0,0.0827]
[1725163413622,0.37628547,58646.0,58629.0,0.0116046]
[1725163413623,0.51163,58636.0,58629.0,0.0116046]
[1725163413833,1.28763542,58636.0,58629.0,0.0116046]
[1725163414054,1.4284747,58636.0,58629.0,0.0116046]
[1725163415152,1.4284747,58636.0,58635.0,0.0018998]
[1725163415365,1.4284747,58636.0,58635.0,0.0008998]
[1725163415574,1.4284747,58636.0,58635.0,0.0018998]
[1725163416396,1.4364747,58636.0,58635.0,0.0028998]
[1725163416603,1.4364747,58636.0,58635.0,0.0018998]
[1725163416836,1.4364747,58636.0,58635.0,0.0008998]
[1725163416837,1.4284747,58636.0,58635.0,0.0008998]
[1725163417069,1.4284747,58636.0,58635.0,0.0018998]
[1725163417070,1.4634747,58636.0,58635.0,0.0018998]
[1725163418050,1.8115617,58636.0,58635.0,0.0028998]
[1725163419417,1.8297667,58636.0,58635.0,0.0028998]
[1725163420354,1.8037667,58636.0,58635.0,0.0028998]
[1725163423186,1.8037667,58636.0,58635.0,0.0633998]
[1725163423413,1.7855617,58636.0,58635.0,0.0633998]
[1725163424631,1.78981817,58636.0,58635.0,0.0028998]
[1725163428980,1.78981817,58636.0,58635.0,0.1399998]
[1725163430716,1.78981817,58636.0,58635.0,0.0028998]
[1725163435272,1.35064328,58636.0,58635.0,0.1454998]
[1725163435502,1.4444747,58636.0,58635.0,0.1454998]
[1725163440049,1.4444747,58636.0,58635.0,0.0678998]
[1725163440270,1.4444747,58636.0,58635.0,0.0028998]
[1725163440477,1.50266604,58636.0,58635.0,0.0028998]
[1725163441536,1.84375304,58636.0,58635.0,0.0028998]
[1725163441961,1.50266604,58636.0,58635.0,0.0028998]
[1725163442167,1.84375304,58636.0,58635.0,0.0028998]
[1725163442823,1.4444747,58636.0,58635.0,0.0028998]
[1725163443280,1.7855617,58636.0,58635.0,0.0028998]
[1725163444600,0.170578,58624.0,58623.0,0.0757]
[1725163444845,1.194049,58624.0,58623.0,0.0757]
[1725163445057,1.317049,58624.0,58623.0,0.0757]
[1725163445268,1.19407,58623.0,58622.0,0.0638]
[1725163445517,1.41090142,58623.0,58622.0,0.0638]
[1725163446404,1.81516335,58623.0,58622.0,0.0638]
[1725163446833,1.82516335,58623.0,58622.0,0.0648]
[1725163447275,1.82941982,58623.0,58622.0,0.001]
[1725163447702,1.82941982,58623.0,58611.0,0.009409]
[1725163447703,1.53966947,58616.0,58613.0,0.0757]
[1725163447914,1.69659982,58616.0,58613.0,0.0757]
[1725163448148,1.87780318,58616.0,58613.0,0.0757]
[1725163448364,1.87780318,58616.0,58611.0,0.073209]
[1725163449230,1.88280318,58616.0,58615.0,0.009998]
[1725163449435,1.82459982,58616.0,58615.0,0.009998]
[1725163451161,1.82959982,58616.0,58615.0,0.009998]
[1725163451793,1.82534335,58616.0,58615.0,0.009998]
[1725163451995,1.82959982,58616.0,58615.0,0.009998]
[1725163452553,1.84763764,58616.0,58615.0,0.009998]
[1725163453627,1.82959982,58616.0,58615.0,0.085698]
[1725163453863,1.82959982,58616.0,58615.0,0.149498]
[1725163454187,1.82534335,58616.0,58615.0,0.149498]
[1725163455905,1.82534335,58616.0,58615.0,0.1452363]
[1725163458157,1.48414035,58616.0,58615.0,0.1452363]
[1725163458961,1.32721,58616.0,58615.0,0.1452363]
[1725163459157,1.48414035,58616.0,58615.0,0.1452363]
[1725163460639,1.50197963,58616.0,58615.0,0.1452363]
[1725163462396,0.32144028,58616.0,58615.0,0.1452363]
[1725163462549,0.22144028,58616.0,58615.0,0.1452363]
[1725163462758,0.56264328,58616.0,58615.0,0.0057363]
[1725163462963,0.90384628,58616.0,58615.0,0.0057363]
[1725163463184,1.24504928,58616.0,58615.0,0.0834363]
[1725163463408,1.24504928,58616.0,58615.0,0.1461363]
[1725163464031,1.34504928,58616.0,58615.0,0.1461363]
[1725163466438,1.43919603,58616.0,58615.0,0.1461363]
[1725163467125,1.43919603,58616.0,58607.0,0.086709]
[1725163467126,0.170625,58608.0,58607.0,0.086709]
[1725163467356,0.94727175,58608.0,58607.0,0.009009]
[1725163467582,1.28852175,58608.0,58607.0,0.009009]
[1725163467823,1.24089675,58608.0,58607.0,0.009009]
[1725163468030,1.317375,58608.0,58607.0,0.009009]
[1725163468241,1.41152175,58608.0,58607.0,0.009009]
[1725163468892,1.42152175,58608.0,58607.0,0.010009]
[1725163470133,1.327375,58608.0,58607.0,0.010009]
[1725163470340,1.49434684,58608.0,58607.0,0.010009]
[1725163471814,1.337375,58608.0,58607.0,0.010009]
[1725163472024,1.49434684,58608.0,58607.0,0.010009]
[1725163475699,1.15309684,58608.0,58607.0,0.150409]
[1725163475938,1.17093612,58608.0,58607.0,0.150409]
[1725163476343,1.51218612,58608.0,58607.0,0.150409]
[1725163477300,1.17093612,58608.0,58607.0,0.150409]
[1725163477928,1.51218612,58608.0,58607.0,0.150409]
[1725163479108,1.17093612,58608.0,58607.0,0.150409]
[1725163479311,1.51218612,58608.0,58607.0,0.150409]
[1725163479485,1.57047344,58608.0,58607.0,0.150409]
[1725163479639,1.22922344,58608.0,58607.0,0.150409]
[1725163481994,1.57047344,58608.0,58607.0,0.150409]
[1725163482199,1.22922344,58608.0,58607.0,0.150409]
[1725163482413,1.57047344,58608.0,58607.0,0.150409]
[1725163482824,1.22922344,58608.0,58607.0,0.150409]
[1725163484091,1.12239844,58608.0,58602.0,0.008998]
[1725163484308,1.01445531,58601.0,58598.0,0.008998]
[1725163484536,1.45574631,58601.0,58598.0,0.008998]
[1725163484750,1.53702766,58601.0,58598.0,0.008998]
[1725163485624,1.53902766,58601.0,58598.0,0.008998]
[1725163486513,1.53477119,58601.0,58598.0,0.008998]
[1725163486745,1.13319884,58601.0,58600.0,0.1788]
[1725163486974,1.47448984,58601.0,58600.0,0.1788]
[1725163487592,1.48648984,58601.0,58600.0,0.1788]
[1725163487802,1.48374631,58601.0,58600.0,0.1]
[1725163488144,1.48774631,58601.0,58600.0,0.1]
[1725163488983,1.48274631,58601.0,58600.0,0.1]
[1725163489387,1.48774631,58601.0,58600.0,0.1009009]
[1725163490241,1.0564065,58601.0,58600.0,0.2457009]
[1725163491600,0.279645,58601.0,58600.0,0.2457009]
[1725163492251,0.620936,58601.0,58600.0,0.2457009]
[1725163492875,0.620936,58601.0,58600.0,0.24644443]
[1725163492876,0.132,58601.0,58600.0,0.24644443]
[1725163493083,0.032,58601.0,58600.0,0.24644443]
[1725163493971,0.032,58601.0,58600.0,0.1009009]
[1725163493972,0.76469474,58601.0,58600.0,0.1009009]
[1725163494172,1.54175666,58601.0,58600.0,0.1009009]
[1725163496729,1.54601313,58601.0,58600.0,0.1009009]
[1725163498867,1.88730413,58601.0,58600.0,0.1009009]
[1725163499092,1.90514341,58601.0,58600.0,0.1009009]
[1725163499703,1.90014341,58601.0,58600.0,0.1009009]
[1725163499980,1.90814341,58601.0,58600.0,0.1009009]
[1725163500167,1.90414341,58601.0,58600.0,0.1009009]
[1725163500378,1.91114341,58601.0,58600.0,0.1009009]
[1725163502406,1.19895647,58592.0,58591.0,0.0004]
[1725163502608,1.69725821,58592.0,58591.0,0.0004]
[1725163502815,1.79725821,58592.0,58591.0,0.0004]
[1725163502994,1.87853679,58592.0,58591.0,0.0004]
[1725163503673,1.87853679,58592.0,58576.0,0.008998]
[1725163503674,0.853575,58577.0,58576.0,0.008998]
[1725163503883,1.35196374,58577.0,58576.0,0.008998]
[1725163504097,1.45196374,58577.0,58576.0,0.008998]
[1725163504324,1.47496374,58577.0,58576.0,0.008998]
[1725163504974,1.13953374,58577.0,58576.0,0.152898]
[1725163505180,0.79810374,58577.0,58576.0,0.152898]
[1725163505606,1.14553374,58577.0,58576.0,0.152898]
[1725163506299,0.81110374,58577.0,58576.0,0.152898]
[1725163506712,1.14553374,58577.0,58576.0,0.152898]
[1725163506924,1.15053374,58577.0,58576.0,0.152898]
[1725163507138,1.13853374,58577.0,58576.0,0.152898]
[1725163507344,1.14253374,58577.0,58576.0,0.152898]
[1725163510064,0.80110374,58577.0,58576.0,0.152898]
[1725163510259,0.80110374,58577.0,58576.0,0.15364153]
[1725163511046,1.14253374,58577.0,58576.0,0.152898]
[1725163511303,0.80110374,58577.0,58576.0,0.152898]
[1725163511933,0.26595874,58577.0,58576.0,0.15364153]
[1725163512148,0.77810374,58577.0,58576.0,0.152898]
[1725163512361,1.11953374,58577.0,58576.0,0.152898]
[1725163512959,1.11953374,58577.0,58576.0,0.090898]
[1725163513407,1.14253374,58577.0,58576.0,0.090898]
[1725163513819,1.13753374,58577.0,58576.0,0.090898]
[1725163514246,1.13753374,58577.0,58576.0,0.152498]
[1725163515284,1.14253374,58577.0,58576.0,0.152498]
[1725163515599,0.004,58577.0,58576.0,0.66539553]
[1725163516032,0.009,58577.0,58576.0,0.66539553]
[1725163516468,0.004,58577.0,58576.0,0.66539553]
[1725163516897,0.001,58577.0,58576.0,0.66539553]
[1725163517116,0.001,58577.0,58576.0,1.00683153]